bitfinex-derivatives/quotes_ETHF0:USTF0_20240924
["timestamp","ask_amount","ask_price","bid_price","bid_amount"]
[1727156827560,0.99595159,2631.3,2631.2,6.78366002]
[1727156827963,0.99595159,2631.3,2631.2,6.40359002]
[1727156828255,0.99595159,2631.3,2631.2,6.78366002]
[1727156829264,1.79335159,2631.4,2631.2,6.78366002]
[1727156829665,2.17340159,2631.4,2631.2,6.40359002]
[1727156831361,2.17340159,2631.4,2631.2,6.78366002]
[1727156833062,0.7974,2631.4,2631.2,6.78366002]
[1727156834964,1.17744,2631.4,2631.2,6.78366002]
[1727156837266,0.77954,2631.4,2631.2,6.78366002]
[1727156838464,0.77954,2631.4,2631.3,40.8]
[1727156838867,0.3995,2631.4,2631.3,44.77107019]
[1727156839169,0.77954,2631.4,2631.3,44.77107019]
[1727156843076,0.3995,2631.4,2631.3,45.15112019]
[1727156843279,0.77954,2631.4,2631.3,44.77107019]
[1727156846282,0.3995,2631.4,2631.3,45.15112019]
[1727156847178,0.3995,2631.4,2631.3,46.38112019]
[1727156847576,0.3995,2631.4,2631.3,5.58112019]
[1727156848088,0.3995,2631.4,2631.3,46.38112019]
[1727156848775,0.3698,2631.7,2631.3,46.38112019]
[1727156848972,0.3955,2631.6,2631.3,46.38112019]
[1727156849779,0.3955,2631.6,2631.4,0.38004]
[1727156850177,0.3955,2631.6,2631.5,4.65307744]
[1727156850585,0.3955,2631.6,2631.5,0.3691]
[1727156852291,0.3955,2631.6,2631.5,1.97913]
[1727156852491,0.3955,2631.6,2631.5,5.9588353]
[1727156852882,0.3698,2631.7,2631.5,46.7588353]
[1727156853082,0.3698,2631.7,2631.6,0.3815]
[1727156853478,0.3698,2631.7,2631.6,4.88281726]
[1727156853684,0.3698,2631.7,2631.6,4.50280726]
[1727156853979,7.84594827,2631.9,2631.6,5.73280726]
[1727156853980,4.20375159,2631.9,2631.6,5.73280726]
[1727156854285,0.3805,2632.0,2631.9,0.37997]
[1727156854592,0.3618,2632.1,2632.0,0.37995]
[1727156854786,0.3618,2632.1,2632.0,1.99545]
[1727156854988,0.3618,2632.1,2632.0,1.6155]
[1727156855181,0.3618,2632.1,2632.0,1.99545]
[1727156855388,0.3618,2632.1,2632.0,1.6155]
[1727156858486,0.99595159,2632.4,2632.0,9.482047]
[1727156858683,3.6003,2632.5,2632.3,1.60991]
[1727156858883,3.6003,2632.5,2632.4,0.7508]
[1727156860491,3.6003,2632.5,2632.4,5.05881778]
[1727156862486,3.6003,2632.5,2632.4,45.85881778]
[1727156863698,4.59625159,2632.5,2632.4,45.85881778]
[1727156865594,4.59625159,2632.5,2632.4,45.10801778]
[1727156866503,1.38845159,2632.5,2632.4,45.48791778]
[1727156866801,1.38845159,2632.5,2632.4,46.71791778]
[1727156866998,0.3925,2632.5,2632.4,46.71791778]
[1727156867198,1.38845159,2632.5,2632.4,46.71791778]
[1727156867501,0.3925,2632.5,2632.4,46.71791778]
[1727156870700,0.3925,2632.5,2632.4,46.33801778]
[1727156870904,0.3925,2632.5,2632.4,46.71791778]
[1727156872302,0.3925,2632.5,2632.4,46.33801778]
[1727156872489,0.3925,2632.5,2632.4,46.71791778]
[1727156874598,0.3925,2632.5,2632.4,5.91791778]
[1727156875099,0.3925,2632.5,2632.4,46.71791778]
[1727156878708,0.3925,2632.5,2632.4,46.33801778]
[1727156879099,0.77238,2632.5,2632.4,46.33801778]
[1727156883600,0.3925,2632.5,2632.4,46.71791778]
[1727156883909,1.77291159,2632.7,2632.4,46.71791778]
[1727156884110,0.3771,2632.6,2632.5,0.37988]
[1727156884305,0.75697,2632.6,2632.5,0.3702]
[1727156886302,0.75697,2632.6,2632.4,46.69921778]
[1727156886303,0.37988,2632.5,2632.4,46.69921778]
[1727156886804,1.37583159,2632.5,2632.4,46.69921778]
[1727156887003,0.99595159,2632.5,2632.4,47.07911778]
[1727156887202,1.37583159,2632.5,2632.4,46.69921778]
[1727156888411,0.37988,2632.5,2632.4,46.69921778]
[1727156888706,1.37288684,2632.5,2632.4,46.69921778]
[1727156889701,0.99300684,2632.5,2632.4,47.07911778]
[1727156892200,2.25339179,2632.6,2632.4,47.07911778]
[1727156892405,1.49642179,2632.5,2632.4,46.69921778]
[1727156892806,0.99364256,2632.5,2632.4,46.69921778]
[1727156893013,2.25339179,2632.6,2632.4,46.69921778]
[1727156893209,1.49642179,2632.5,2632.4,46.69921778]
[1727156893816,0.75697,2632.6,2632.4,46.69921778]
[1727156894201,1.75083208,2632.6,2632.4,46.69921778]
[1727156896518,0.99386208,2632.5,2632.4,46.69921778]
[1727156897411,1.87630179,2632.5,2632.4,45.46921778]
[1727156898206,0.37988,2632.5,2632.4,45.46921778]
[1727156898617,6.8130536,2632.5,2632.4,40.8]
[1727156899121,7.3102255,2632.5,2632.4,40.8]
[1727156899509,0.37992,2632.2,2632.1,0.3848]
[1727156899714,1.87426193,2632.2,2632.1,0.3848]
[1727156899910,0.37992,2632.2,2632.1,41.1848]
[1727156900110,0.76672,2632.2,2632.1,41.1848]
[1727156901618,0.3868,2632.2,2632.1,42.79474]
[1727156901815,2.37925591,2632.2,2632.1,42.79474]
[1727156902118,1.99245591,2632.2,2632.1,42.79474]
[1727156902520,1.99245591,2632.2,2632.1,43.82834932]
[1727156903011,1.99245591,2632.2,2632.1,43.2699068]
[1727156903207,3.2345555,2632.3,2632.1,42.79474]
[1727156903407,3.2345555,2632.3,2632.1,43.26991183]
[1727156903814,0.37992,2632.2,2632.1,42.88997183]
[1727156904012,3.2345655,2632.3,2632.1,43.36514363]
[1727156904216,3.2707655,2632.2,2632.1,43.84031369]
[1727156904423,3.2707655,2632.2,2632.1,43.92375552]
[1727156904718,3.2707655,2632.2,2632.1,43.36514363]
[1727156904925,3.2707655,2632.2,2632.1,42.13514363]
[1727156905124,3.2707655,2632.2,2632.1,41.75034363]
[1727156906412,4.2205855,2632.2,2632.1,0.95034363]
[1727156906629,6.75724,2632.2,2632.1,0.95034363]
[1727156909019,9.24796945,2632.2,2632.1,0.95034363]
[1727156910431,6.75724,2632.2,2632.1,0.95034363]
[1727156913727,5.80742,2632.2,2632.1,0.95034363]
[1727156913928,4.57742,2632.2,2632.1,0.95034363]
[1727156914322,0.37995,2632.0,2631.8,41.96267]
[1727156914631,0.99556207,2631.9,2631.8,41.96267]
[1727156915228,0.99556207,2631.9,2631.8,46.14907892]
[1727156915434,0.99556207,2632.0,2631.9,0.37997]
[1727156915629,0.99556207,2632.0,2631.9,1.60997]
[1727156915827,0.99556207,2632.0,2631.9,5.34315103]
[1727156917022,1.49334311,2632.0,2631.9,5.34315103]
[1727156917424,1.87329311,2632.0,2631.9,3.73318103]
[1727156917628,1.87329311,2632.0,2631.9,4.11315103]
[1727156917629,1.49334311,2632.0,2631.9,4.11315103]
[1727156918132,1.87329311,2632.1,2631.9,4.11315103]
[1727156918526,0.99528696,2632.0,2631.9,5.34315103]
[1727156924034,0.37993,2632.2,2632.0,0.37995]
[1727156924035,1.37521696,2632.2,2632.0,0.37995]
[1727156926334,0.99528696,2632.2,2631.9,4.96318103]
[1727156926531,0.99528696,2632.1,2632.0,0.37995]
[1727156927746,1.37522696,2632.1,2631.9,4.11314103]
[1727156928038,1.74432696,2632.1,2631.9,4.11314103]
[1727156928242,0.37995,2632.0,2631.9,3.73318103]
[1727156928455,1.37523696,2632.0,2631.9,3.73318103]
[1727156928747,1.37523696,2632.0,2631.8,41.96267]
[1727156930644,0.99528696,2632.0,2631.8,41.96267]
[1727156931137,1.37524696,2632.0,2631.8,41.96267]
[1727156931344,0.99528696,2632.0,2631.8,41.96267]
[1727156932532,0.99528696,2632.0,2631.9,0.37997]
[1727156934738,1.37523696,2632.0,2631.8,41.96268]
[1727156935639,1.37523696,2632.0,2631.9,0.3749]
[1727156938537,1.37582448,2632.0,2631.9,0.3749]
[1727156939349,0.37995,2632.0,2631.9,0.3749]
[1727156939546,1.37595033,2632.0,2631.9,0.3749]
[1727156939938,0.37995,2632.0,2631.9,0.3749]
[1727156940446,1.87329311,2632.0,2631.9,0.3749]
[1727156940847,1.49334311,2632.0,2631.9,0.75487]
[1727156941040,2.24239311,2632.1,2631.9,0.75487]
[1727156941348,1.49334311,2632.0,2631.9,0.3749]
[1727156941543,1.87329311,2632.0,2631.9,0.3749]
[1727156941751,1.49334311,2632.0,2631.9,0.3749]
[1727156942139,1.87329311,2632.0,2631.9,0.3749]
[1727156943550,1.87329311,2632.0,2631.9,1.36815635]
[1727156943947,1.87329311,2632.0,2631.9,0.3749]
[1727156944549,0.37995,2632.0,2631.9,1.36815635]
[1727156945449,0.37998,2631.8,2631.7,0.99325635]
[1727156945648,0.38,2631.7,2631.6,0.99325635]
[1727156945852,0.38001,2631.6,2631.5,0.99325635]
[1727156946144,1.87515248,2631.6,2631.4,0.99325635]
[1727156946346,0.99676187,2631.5,2631.4,1.37329635]
[1727156946553,0.99676187,2631.5,2631.4,4.64472087]
[1727156947139,0.99676187,2631.5,2631.4,3.56652995]
[1727156947449,0.99676187,2631.5,2631.4,4.16942508]
[1727156947652,0.99676187,2631.5,2631.4,3.56652592]
[1727156947850,0.99676187,2631.5,2631.4,4.16922397]
[1727156948045,0.99676187,2631.5,2631.4,11.89024025]
[1727156948241,0.99676187,2631.5,2631.4,11.37114633]
[1727156948442,0.99676187,2631.5,2631.4,12.2261642]
[1727156948843,0.99676187,2631.5,2631.4,8.4261642]
[1727156949358,0.99676187,2631.6,2631.4,8.4261642]
[1727156949554,0.99676187,2631.6,2631.5,1.37312107]
[1727156949746,0.99648219,2631.6,2631.5,1.37312107]
[1727156950058,2.26014248,2631.7,2631.5,5.23310726]
[1727156950355,0.99640024,2631.6,2631.5,5.23310726]
[1727156950654,0.38001,2631.6,2631.5,5.23310726]
[1727156950841,0.38001,2631.6,2631.5,4.24001619]
[1727156950842,3.10515248,2631.6,2631.5,4.24001619]
[1727156951042,1.23,2631.6,2631.3,42.54149107]
[1727156951251,0.99635024,2631.4,2631.3,42.54149107]
[1727156951646,1.36275024,2631.4,2631.3,46.75595799]
[1727156951846,1.74279024,2631.4,2631.3,46.75595799]
[1727156952359,1.74279024,2631.4,2631.3,45.76286692]
[1727156952548,1.74279024,2631.4,2631.3,46.75595799]
[1727156953054,1.36275024,2631.4,2631.3,42.92154107]
[1727156953349,1.36275024,2631.4,2631.3,41.92845]
[1727156953551,0.99635024,2631.4,2631.3,46.14700854]
[1727156954254,1.37638024,2631.5,2631.3,46.14700854]
[1727156954454,2.72452537,2631.6,2631.3,47.37700854]
[1727156954455,0.99635024,2631.4,2631.3,47.37700854]
[1727156954655,0.99635024,2631.6,2631.3,48.21633087]
[1727156954854,0.99635024,2631.6,2631.5,1.23]
[1727156955149,0.99635024,2631.6,2631.5,5.73481676]
[1727156955751,0.99635024,2631.7,2631.6,0.38001]
[1727156956348,1.37635024,2631.7,2631.5,5.73480676]
[1727156956654,1.49452537,2631.8,2631.6,0.38001]
[1727156956953,0.99570651,2631.7,2631.6,0.38001]
[1727156957143,1.37570651,2631.7,2631.5,5.73480676]
[1727156957348,0.99570651,2631.7,2631.6,0.38001]
[1727156957854,1.37570651,2631.7,2631.6,0.38001]
[1727156958554,0.99570651,2631.7,2631.6,0.38001]
[1727156958944,1.37570651,2631.7,2631.5,5.73480676]
[1727156959346,0.99570651,2631.7,2631.6,0.38001]
[1727156959549,0.99570651,2631.8,2631.7,0.38]
[1727156960346,1.37568651,2631.8,2631.6,0.38]
[1727156965562,1.37568651,2631.8,2631.7,0.394]
[1727156968160,0.37998,2631.8,2631.7,0.394]
[1727156969168,1.37574672,2631.8,2631.7,0.394]
[1727156969566,0.9958207,2631.8,2631.7,1.624]
[1727156969767,0.9958207,2631.9,2631.8,0.37998]
[1727156969966,0.9958207,2631.9,2631.8,1.60998]
[1727156970265,0.9958207,2632.0,2631.9,0.37997]
[1727156970465,1.49452537,2632.1,2631.9,0.77657]
[1727156970668,0.99578211,2632.0,2631.9,0.77657]
[1727156970860,1.49452537,2632.1,2631.9,0.77657]
[1727156971563,0.99580183,2632.0,2631.9,0.3966]
[1727156971768,0.99580183,2632.0,2631.9,0.77657]
[1727156972460,1.49452537,2632.1,2631.9,0.77657]
[1727156973165,1.49452537,2632.1,2631.9,0.3966]
[1727156973166,1.87447537,2632.1,2631.9,0.3966]
[1727156973467,0.37995,2632.0,2631.9,0.3966]
[1727156973668,0.37997,2631.9,2631.7,0.99269441]
[1727156973874,2.15657869,2631.9,2631.7,1.37269441]
[1727156974059,2.15657869,2631.9,2631.8,4.10939441]
[1727156975472,1.16057,2631.9,2631.8,4.10939441]
[1727156976272,3.88458303,2631.9,2631.7,1.37269441]
[1727156976474,0.99603277,2631.8,2631.7,0.38]
[1727156976875,0.99603277,2631.8,2631.7,0.99269441]
[1727156977064,0.99603277,2631.8,2631.7,6.55536325]
[1727156977373,0.3931,2631.9,2631.8,0.37998]
[1727156977570,0.3931,2631.9,2631.8,0.77408]
[1727156977773,1.38912707,2631.9,2631.8,0.77408]
[1727156977970,1.38912707,2631.9,2631.8,6.09854815]
[1727156978170,1.38912707,2631.9,2631.8,5.71856815]
[1727156978370,1.38912707,2631.9,2631.8,6.09854815]
[1727156978772,0.99602707,2631.9,2631.8,9.89854815]
[1727156978968,1.49401303,2632.1,2631.9,0.37997]
[1727156978969,0.99602707,2632.0,2631.9,0.37997]
[1727156979277,0.99602707,2632.0,2631.9,4.73255214]
[1727156981476,0.99602707,2632.0,2631.9,5.7253816]
[1727156981978,2.62794303,2632.2,2632.0,0.37995]
[1727156982279,1.49401303,2632.1,2632.0,0.37995]
[1727156983279,1.87395303,2632.1,2631.9,4.73254214]
[1727156983581,0.99584575,2632.0,2631.9,4.73254214]
[1727156985582,0.99584575,2632.0,2631.9,5.11394214]
[1727156985982,1.37578575,2632.1,2631.9,6.1067716]
[1727156986685,0.99584575,2632.0,2631.9,5.11394214]
[1727156988181,1.37578575,2632.1,2631.9,5.11394214]
[1727156988371,0.99584575,2632.0,2631.9,5.11394214]
[1727156988581,0.37994,2632.1,2631.9,5.11394214]
[1727156988582,1.37578575,2632.1,2631.9,5.11394214]
[1727156988880,0.99584575,2632.0,2631.9,5.11394214]
[1727156989079,0.37994,2632.1,2631.9,5.11394214]
[1727156989080,1.37578575,2632.1,2631.9,5.11394214]
[1727156989283,0.99584575,2632.1,2631.9,5.11394214]
[1727156989586,0.99584575,2632.1,2632.0,0.37995]
[1727156989969,1.37374575,2632.2,2632.0,1.37277946]
[1727156990173,0.3779,2632.2,2632.1,0.37994]
[1727156990373,0.3779,2632.2,2632.1,0.99282946]
[1727156990578,0.3779,2632.2,2632.1,4.32418864]
[1727156991873,0.3779,2632.2,2632.1,4.70412864]
[1727156992078,0.3779,2632.2,2632.1,5.3170181]
[1727156992385,0.3779,2632.2,2632.1,5.6969581]
[1727156993079,0.3779,2632.2,2632.1,4.70412864]
[1727156993583,0.3779,2632.2,2632.1,5.6969581]
[1727156993781,0.3779,2632.2,2632.1,4.70412864]
[1727156995580,0.3779,2632.2,2632.1,5.07882864]
[1727157000579,0.3779,2632.2,2632.1,4.69888864]
[1727157000983,0.3779,2632.2,2632.1,5.07882864]
[1727157001586,0.99584575,2632.3,2632.2,0.37992]
[1727157001781,1.35924575,2632.4,2632.3,0.37991]
[1727157001980,1.35924575,2632.4,2632.2,5.17379129]
[1727157002582,1.35924575,2632.4,2632.3,0.37991]
[1727157003185,1.35924575,2632.4,2632.3,41.17991]
[1727157003384,0.3634,2632.4,2632.3,41.17991]
[1727157004283,0.99584575,2632.5,2632.4,0.3799]
[1727157004785,0.99584575,2632.5,2632.4,4.78891639]
[1727157005589,0.99512639,2632.7,2632.6,0.37987]
[1727157005787,0.99512639,2632.7,2632.6,1.60987]
[1727157005987,1.36562639,2632.8,2632.6,46.69722416]
[1727157006286,1.36562639,2632.8,2632.6,47.09082416]
[1727157006785,1.37497639,2632.7,2632.6,45.08735416]
[1727157006984,1.37497639,2632.7,2632.6,40.8]
[1727157007384,1.87386303,2632.7,2632.6,40.8]
[1727157007590,0.37985,2632.7,2632.6,40.8]
[1727157008087,1.87386303,2632.7,2632.6,40.8]
[1727157008595,0.37985,2632.7,2632.6,40.8]
[1727157008795,3.48061303,2632.8,2632.6,40.8]
[1727157009592,0.37985,2632.7,2632.6,40.8]
[1727157009787,3.48061303,2632.8,2632.6,40.8]
[1727157009788,3.86045303,2632.8,2632.6,40.8]
[1727157009991,0.99479876,2632.7,2632.6,41.17986]
[1727157010382,2.13124876,2632.8,2632.6,41.17986]
[1727157010591,0.99479876,2632.7,2632.6,41.17986]
[1727157010795,0.99479876,2632.7,2632.6,41.17987]
[1727157011089,1.74513876,2632.8,2632.6,40.8]
[1727157011390,1.36529876,2632.8,2632.6,41.17986]
[1727157011695,1.36529876,2632.8,2632.7,0.37985]
[1727157012496,0.3705,2632.8,2632.7,4.64252436]
[1727157012698,0.3705,2632.8,2632.7,5.03752436]
[1727157013496,1.36529876,2632.8,2632.7,5.03752436]
[1727157013684,0.99479876,2632.9,2632.7,4.65767436]
[1727157013891,0.99479876,2632.9,2632.7,5.03751436]
[1727157014190,0.99479876,2632.9,2632.8,0.3696]
[1727157014392,0.99479876,2632.9,2632.8,41.1696]
[1727157014694,0.99479876,2632.9,2632.8,41.54944]
[1727157014892,0.99479876,2632.9,2632.8,41.1696]
[1727157016595,1.76120876,2633.0,2632.8,41.54944]
[1727157016796,0.3866,2633.0,2632.9,0.3918]
[1727157016993,1.76068925,2633.0,2632.9,0.3918]
[1727157017200,0.76641,2633.0,2632.9,0.3918]
[1727157017496,1.76070938,2633.0,2632.9,0.3918]
[1727157018597,1.38089938,2633.0,2632.9,0.3918]
[1727157018797,1.76070938,2633.0,2632.9,0.3918]
[1727157019696,2.99070938,2633.0,2632.9,0.3918]
[1727157019902,0.37982,2632.9,2632.8,40.8]
[1727157020093,1.77201938,2632.9,2632.8,40.8]
[1727157020500,0.77772,2632.9,2632.8,40.8]
[1727157021199,3.00201938,2632.9,2632.8,40.8]
[1727157024394,1.77201938,2632.9,2632.8,40.8]
[1727157029603,0.77772,2632.9,2632.8,40.8]
[1727157030104,2.27173303,2632.9,2632.8,40.8]
[1727157030398,0.77772,2632.9,2632.8,40.8]
[1727157030590,2.27173303,2632.9,2632.8,40.8]
[1727157031293,0.37984,2632.8,2632.6,0.37986]
[1727157031499,0.3763,2632.7,2632.6,0.37986]
[1727157031700,0.739,2632.7,2632.6,0.37986]
[1727157031994,0.739,2632.7,2632.6,41.17986]
[1727157032698,0.3627,2632.7,2632.6,41.17986]
[1727157034503,0.99467336,2632.8,2632.7,0.37985]
[1727157041004,0.99467336,2632.9,2632.8,0.37984]
[1727157041205,0.99467336,2633.0,2632.9,0.37982]
[1727157041408,0.99467336,2633.0,2632.9,0.77912]
[1727157041806,0.99467336,2633.0,2632.9,41.57912]
[1727157042805,0.99467336,2633.1,2633.0,0.37981]
[1727157043201,0.99467336,2633.1,2633.0,1.60981]
[1727157043506,0.99467336,2633.3,2633.2,0.37978]
[1727157044907,0.99467336,2633.3,2633.1,0.37978]
[1727157045114,0.99527825,2633.2,2633.0,8.58301529]
[1727157045304,3.50271303,2633.2,2633.1,0.37979]
[1727157046015,3.50271303,2633.2,2633.0,7.21220631]
[1727157046312,0.99524351,2633.1,2633.0,7.59201631]
[1727157046907,3.00394351,2633.2,2633.0,7.59201631]
[1727157047113,2.0087,2633.2,2633.1,0.37979]
[1727157047614,3.50271303,2633.2,2633.1,0.37979]
[1727157048002,2.0087,2633.2,2633.1,0.37979]
[1727157048414,3.00390563,2633.2,2633.0,7.59200631]
[1727157048614,3.00390563,2633.2,2633.1,0.37979]
[1727157048915,3.50271303,2633.2,2633.1,0.37979]
[1727157049415,3.50271303,2633.2,2633.0,7.59200631]
[1727157049609,0.99528036,2633.1,2633.0,7.59200631]
[1727157049805,0.3907,2633.2,2633.1,0.37979]
[1727157050008,0.99526554,2633.2,2633.1,0.37979]
[1727157050207,1.49401303,2633.3,2633.1,4.46205854]
[1727157050804,0.99529654,2633.2,2633.1,4.46205854]
[1727157051008,1.49401303,2633.3,2633.1,4.46205854]
[1727157051606,1.36679064,2633.5,2633.2,5.39754403]
[1727157051914,1.36679064,2633.5,2633.3,4.60749658]
[1727157051915,0.99529064,2633.4,2633.3,4.60749658]
[1727157052411,1.37504064,2633.4,2633.3,4.60749658]
[1727157053509,0.99529064,2633.4,2633.3,4.60749658]
[1727157053709,1.37504064,2633.4,2633.3,4.60749658]
[1727157054813,0.99529064,2633.4,2633.3,4.60749658]
[1727157055116,1.37504064,2633.4,2633.3,4.60749658]
[1727157055914,1.37504064,2633.4,2633.0,3.2078]
[1727157055915,0.37979,2633.2,2633.0,3.2078]
[1727157056221,3.3797703,2633.1,2633.0,3.2078]
[1727157057018,2.1497703,2633.1,2633.0,3.2078]
[1727157057812,0.37978,2633.2,2633.0,8.66800196]
[1727157058111,0.37978,2633.2,2633.0,7.29746794]
[1727157058112,1.3926803,2633.2,2633.0,7.29746794]
[1727157058319,1.7724703,2633.2,2633.0,7.67726794]
[1727157058504,1.7724703,2633.2,2633.0,7.29746794]
[1727157058706,1.3747703,2633.1,2633.0,7.29746794]
[1727157059514,1.60979,2633.1,2633.0,7.29746794]
[1727157059719,3.10226045,2633.1,2633.0,3.2078]
[1727157060409,1.60979,2633.1,2633.0,3.2078]
[1727157061522,3.10226045,2633.1,2633.0,3.2078]
[1727157062019,3.10226045,2633.1,2633.0,44.0078]
[1727157064722,0.99509545,2633.1,2633.0,44.38761]
[1727157065018,1.39279545,2633.2,2633.0,44.38761]
[1727157065525,1.77257545,2633.2,2633.1,0.3885]
[1727157066822,1.77257545,2633.2,2633.1,0.76829]
[1727157066823,1.89017045,2633.2,2633.1,0.76829]
[1727157067014,1.77251142,2633.2,2633.1,0.3885]
[1727157067415,0.77748,2633.2,2633.1,0.3885]
[1727157067616,2.26995045,2633.2,2633.1,0.3885]
[1727157067817,0.77748,2633.2,2633.1,0.3885]
[1727157068124,0.99506614,2633.4,2633.1,6.74946942]
[1727157068314,0.99506614,2633.5,2633.4,0.37975]
[1727157068522,1.49247045,2633.6,2633.4,0.37975]
[1727157068523,0.99506614,2633.6,2633.5,0.37974]
[1727157068820,0.99506614,2633.8,2633.5,5.10723131]
[1727157069023,0.99506614,2633.8,2633.6,4.4378]
[1727157069329,0.99506614,2633.8,2633.7,0.75371]
[1727157069828,1.38226614,2633.9,2633.7,0.75371]
[1727157070318,0.99506614,2633.9,2633.8,0.37969]
[1727157070623,0.99506614,2633.9,2633.7,0.374]
[1727157070814,0.99506614,2633.9,2633.8,41.17969]
[1727157071210,0.99506614,2634.0,2633.9,0.37968]
[1727157071421,0.00746614,2634.0,2633.9,7.38428]
[1727157071625,0.00746614,2634.4,2634.2,0.37964]
[1727157071920,0.37961,2634.4,2634.3,40.8]
[1727157072127,0.37961,2634.4,2634.3,44.98159893]
[1727157072430,6.61711045,2634.4,2634.3,40.8]
[1727157072626,6.16941984,2634.4,2634.3,40.8]
[1727157072921,4.17561,2634.4,2634.3,40.8]
[1727157073330,0.37965,2634.1,2633.9,0.3943]
[1727157073920,0.74975,2634.1,2634.0,40.8]
[1727157076020,0.3797,2633.8,2633.6,3.5628]
[1727157076329,0.3797,2633.8,2633.7,4.22304241]
[1727157076528,0.3797,2633.8,2633.7,45.02304241]
[1727157077031,1.23,2633.9,2633.7,45.02304241]
[1727157077032,1.60969,2633.9,2633.7,45.02304241]
[1727157077333,2.00497,2634.0,2633.7,45.40274241]
[1727157080019,0.37968,2633.9,2633.7,45.40274241]
[1727157080624,0.37968,2633.9,2633.7,45.02304241]
[1727157080821,0.37969,2633.8,2633.7,45.02304241]
[1727157081219,1.60969,2633.9,2633.7,45.02304241]
[1727157081827,0.37969,2633.9,2633.7,45.02304241]
[1727157082828,1.60969,2633.8,2633.7,45.02304241]
[1727157083030,1.60969,2633.8,2633.7,40.8]
[1727157084034,1.60969,2633.8,2633.6,0.3936]
[1727157084035,0.37971,2633.7,2633.6,0.3936]
[1727157084236,1.96961,2633.7,2633.6,0.3936]
[1727157085124,1.96961,2633.7,2633.6,41.1936]
[1727157102835,1.60971,2633.7,2633.6,41.1936]
[1727157105940,1.98471,2633.7,2633.6,41.1936]
[1727157107443,0.37978,2633.2,2633.1,3.2078]
[1727157107636,1.23,2633.2,2633.1,3.96519]
[1727157107942,0.37978,2633.2,2633.1,48.78447524]
[1727157109141,0.7479,2633.4,2633.1,48.78447524]
[1727157109439,0.74681,2633.7,2633.5,0.37974]
[1727157109642,0.74681,2633.7,2633.6,1.1545]
[1727157112043,1.97681,2633.7,2633.6,0.7553]
[1727157112240,0.37975,2633.4,2633.3,0.99072402]
[1727157112441,0.37977,2633.3,2633.2,1.36982402]
[1727157112645,0.76387,2633.3,2633.2,1.36982402]
[1727157112939,0.76387,2633.3,2633.2,5.53498685]
[1727157113342,0.76387,2633.3,2633.2,1.73738685]
[1727157113545,0.37977,2633.3,2633.2,1.73738685]
[1727157114246,0.37976,2633.4,2633.2,1.73738685]
[1727157114443,0.37976,2633.4,2633.2,2.11716685]
[1727157114641,0.37977,2633.3,2633.2,1.73738685]
[1727157114845,0.37976,2633.4,2633.2,2.11716685]
[1727157115146,0.37977,2633.3,2633.2,1.73738685]
[1727157116140,0.37977,2633.3,2633.2,2.11716685]
[1727157116346,0.37977,2633.3,2633.2,1.73738685]
[1727157116546,0.37974,2633.5,2633.3,0.37976]
[1727157116844,3.1011255,2633.6,2633.4,5.22015664]
[1727157117046,1.60973,2633.6,2633.4,5.22015664]
[1727157117247,3.1011255,2633.6,2633.5,0.3626]
[1727157117654,1.23,2633.6,2633.5,5.15015994]
[1727157117951,1.8711155,2633.7,2633.5,5.15015994]
[1727157118251,1.4913955,2633.8,2633.7,0.37971]
[1727157118644,1.4913955,2633.8,2633.7,4.49881553]
[1727157119048,3.1010855,2633.9,2633.7,4.11910553]
[1727157119243,2.7213955,2633.9,2633.8,0.3631]
[1727157119454,1.23,2633.9,2633.8,0.7298]
[1727157120349,1.8710655,2634.0,2633.8,1.10948]
[1727157120744,1.8710655,2634.0,2633.9,0.3991]
[1727157121345,1.4913955,2634.0,2633.9,0.77878]
[1727157122244,0.7597,2634.1,2633.9,0.77878]
[1727157122245,1.8710455,2634.1,2633.9,9.90384683]
[1727157122445,1.8710455,2634.1,2633.9,6.10704683]
[1727157122648,1.4913955,2634.1,2634.0,0.37966]
[1727157122853,1.4913955,2634.2,2634.0,40.8]
[1727157123052,1.8710455,2634.1,2634.0,45.15818656]
[1727157123357,1.8710155,2634.3,2634.1,0.37965]
[1727157123658,1.4913955,2634.3,2634.2,4.72631193]
[1727157123952,1.8710155,2634.3,2634.2,0.386]
[1727157124150,2.6381155,2634.3,2634.2,0.386]
[1727157124346,2.6381155,2634.3,2634.2,3.96067193]
[1727157124347,2.09578,2634.3,2634.2,3.96067193]
[1727157124552,2.09578,2634.3,2634.0,44.0078]
[1727157124553,0.37965,2634.1,2634.0,44.0078]
[1727157124759,4.54222742,2634.1,2634.0,44.0078]
[1727157124963,3.04965,2634.1,2634.0,44.0078]
[1727157125349,1.49261904,2634.1,2634.0,44.0078]
[1727157125651,1.87226904,2634.1,2634.0,44.0078]
[1727157126447,0.37965,2634.1,2634.0,44.0078]
[1727157126648,0.37965,2634.1,2634.0,48.18308009]
[1727157127156,0.37965,2634.1,2634.0,48.56068009]
[1727157129547,0.37965,2634.1,2634.0,7.76068009]
[1727157129947,0.37965,2634.1,2634.0,4.55288009]
[1727157130153,0.37965,2634.1,2634.0,45.35288009]
[1727157130655,0.37965,2634.1,2634.0,44.97528009]
[1727157133362,0.37965,2634.1,2634.0,40.8]
[1727157139553,0.37971,2633.7,2633.6,0.99228612]
[1727157139757,0.37971,2633.7,2633.5,4.20008612]
[1727157139970,0.37971,2633.7,2633.5,3.58753]
[1727157139971,0.3929,2633.6,2633.5,3.58753]
[1727157140177,0.3929,2633.6,2633.5,7.0046]
[1727157140467,0.3929,2633.6,2633.5,52.51387845]
[1727157140651,0.3929,2633.6,2633.5,52.13413845]
[1727157140857,0.3929,2633.6,2633.5,52.51387845]
[1727157141055,0.77262,2633.6,2633.5,52.13413845]
[1727157141264,0.3929,2633.6,2633.5,52.51387845]
[1727157141462,0.3929,2633.6,2633.5,48.33733845]
[1727157141664,0.77262,2633.6,2633.5,48.33733845]
[1727157141962,0.3929,2633.6,2633.5,48.33733845]
[1727157142362,0.3929,2633.6,2633.5,52.51387845]
[1727157142558,0.3929,2633.6,2633.5,48.71707845]
[1727157142752,0.3929,2633.6,2633.5,52.13413845]
[1727157142958,0.77262,2633.6,2633.5,48.33733845]
[1727157143167,0.3929,2633.6,2633.5,45.12953845]
[1727157148056,0.77262,2633.6,2633.5,45.12953845]
[1727157149973,0.3929,2633.6,2633.5,45.12953845]
[1727157151064,1.60972,2633.7,2633.5,45.12953845]
[1727157153262,1.60972,2633.7,2633.5,45.50927845]